[Event "Hull 4NCL GM Norm Tournament"]
[Site "Canham Turner Centre"]
[Date "2022.10.16"]
[Round "8.1"]
[White "Sarakauskas, Gediminas"]
[Black "Harvey, Marcus R"]
[Result "1/2-1/2"]
[TimeControl "1hr30 + 30sec inc"]
[WhiteElo "2395"]
[BlackElo "2463"]

1. e4 {[%clk 01:30:49]} {[%emt 00:40:41]} c6 {[%clk 01:17:54]} {[%emt
00:13:20]} 2. d4 {[%clk 01:31:14]} {[%emt 00:00:05]} d5 {[%clk 01:18:20]}
{[%emt 00:00:04]} 3. Nc3 {[%clk 01:31:40]} {[%emt 00:00:03]} dxe4 {[%clk
01:18:04]} {[%emt 00:00:45]} 4. Nxe4 {[%clk 01:32:05]} {[%emt 00:00:05]} Nd7
{[%clk 01:16:35]} {[%emt 00:01:59]} 5. Nf3 {[%clk 01:32:00]} {[%emt 00:00:35]}
Ngf6 {[%clk 01:16:19]} {[%emt 00:00:47]} 6. Nxf6+ {[%clk 01:32:24]} {[%emt
00:00:06]} Nxf6 {[%clk 01:16:35]} {[%emt 00:00:14]} 7. Bc4 {[%clk 01:32:49]}
{[%emt 00:00:05]} Bf5 {[%clk 01:13:16]} {[%emt 00:03:49]} 8. O-O {[%clk
01:33:11]} {[%emt 00:00:07]} e6 {[%clk 01:13:10]} {[%emt 00:00:36]} 9. h3
{[%clk 01:33:29]} {[%emt 00:00:12]} h6 {[%clk 01:11:25]} {[%emt 00:02:15]} 10.
c3 {[%clk 01:33:46]} {[%emt 00:00:13]} Bd6 {[%clk 01:10:54]} {[%emt 00:01:01]}
11. Re1 {[%clk 01:27:23]} {[%emt 00:06:52]} O-O {[%clk 01:10:45]} {[%emt
00:00:38]} 12. Bd3 {[%clk 01:27:44]} {[%emt 00:00:10]} Bxd3 {[%clk 01:06:19]}
{[%emt 00:04:57]} 13. Qxd3 {[%clk 01:28:11]} {[%emt 00:00:03]} Nd5 {[%clk
01:02:41]} {[%emt 00:04:07]} 14. Qe4 {[%clk 01:26:52]} {[%emt 00:01:48]} Qf6
{[%clk 01:00:02]} {[%emt 00:03:10]} 15. Ne5 {[%clk 00:57:23]} {[%emt 00:29:59]}
Rfd8 {[%clk 00:54:15]} {[%emt 00:06:17]} 16. Ng4 {[%clk 00:56:33]} {[%emt
00:01:19]} Qe7 {[%clk 00:51:00]} {[%emt 00:03:45]} 17. Qf3 {[%clk 00:55:16]}
{[%emt 00:01:47]} Kh7 {[%clk 00:44:19]} {[%emt 00:07:11]} 18. Ne3 {[%clk
00:40:45]} {[%emt 00:15:00]} Qf6 {[%clk 00:43:38]} {[%emt 00:01:11]} 19. Qe4+
{[%clk 00:39:48]} {[%emt 00:01:26]} Kh8 {[%clk 00:40:52]} {[%emt 00:03:17]} 20.
Nxd5 {[%clk 00:39:17]} {[%emt 00:01:02]} cxd5 {[%clk 00:39:46]} {[%emt
00:01:35]} 21. Qg4 {[%clk 00:35:25]} {[%emt 00:04:21]} b5 {[%clk 00:39:00]}
{[%emt 00:01:17]} 22. Re3 {[%clk 00:35:28]} {[%emt 00:00:26]} Kh7 {[%clk
00:38:05]} {[%emt 00:01:26]} 23. Rf3 {[%clk 00:27:57]} {[%emt 00:08:00]} Qg6
{[%clk 00:37:58]} {[%emt 00:00:38]} 24. Bf4 {[%clk 00:27:59]} {[%emt 00:00:27]}
Qxg4 {[%clk 00:34:58]} {[%emt 00:03:30]} 25. hxg4 {[%clk 00:28:28]} {[%emt
00:00:01]} Be7 {[%clk 00:31:13]} {[%emt 00:04:15]} 26. Bc7 {[%clk 00:28:35]}
{[%emt 00:00:23]} Rdc8 {[%clk 00:31:02]} {[%emt 00:00:41]} 27. Ba5 {[%clk
00:28:54]} {[%emt 00:00:10]} Kg6 {[%clk 00:30:07]} {[%emt 00:01:25]} 28. a3
{[%clk 00:27:30]} {[%emt 00:01:54]} Rc6 {[%clk 00:29:39]} {[%emt 00:00:58]} 29.
Bb4 {[%emt 00:02:15]} Bf8 {[%clk 00:29:48]} {[%emt 00:00:19]} 30. Kf1 {[%clk
00:21:17]} {[%emt 00:05:00]} a5 {[%clk 00:27:41]} {[%emt 00:02:38]} 31. Bxf8
{[%clk 00:21:45]} {[%emt 00:00:02]} Rxf8 {[%clk 00:28:05]} {[%emt 00:00:05]} 32.
Ke2 {[%clk 00:21:41]} {[%emt 00:00:35]} Rb8 {[%clk 00:27:47]} {[%emt 00:00:48]}
33. Kd3 {[%clk 00:10:40]} {[%emt 00:11:31]} Rb7 {[%clk 00:24:47]} {[%emt
00:03:31]} 34. b3 {[%clk 00:07:02]} {[%emt 00:04:08]} Kg5 {[%clk 00:24:26]}
{[%emt 00:00:50]} 35. Rh3 {[%clk 00:07:03]} {[%emt 00:00:28]} Rbc7 {[%clk
00:23:56]} {[%emt 00:01:01]} 36. Rc1 {[%clk 00:07:27]} {[%emt 00:00:07]} Rc8
{[%clk 00:20:35]} {[%emt 00:03:51]} 37. Rf3 {[%clk 00:06:09]} {[%emt 00:01:47]}
R6c7 {[%clk 00:20:53]} {[%emt 00:00:13]} 38. Re3 {[%clk 00:06:00]} {[%emt
00:00:38]} Rg8 {[%clk 00:19:44]} {[%emt 00:01:40]} 39. Rg3 {[%clk 00:05:34]}
{[%emt 00:00:57]} Rc6 {[%clk 00:18:08]} {[%emt 00:02:05]} 40. Ke3 {[%clk
00:06:02]} {[%emt 00:00:02]} Rgc8 {[%clk 00:18:14]} {[%emt 00:00:25]} 41. f4+
{[%clk 00:06:17]} {[%emt 00:00:15]} Kg6 {[%clk 00:17:39]} {[%emt 00:01:04]} 42.
Kd3 {[%clk 00:06:46]} Ra8 {[%clk 00:16:47]} {[%emt 00:01:22]} 43. Ra1 {[%clk
00:06:54]} {[%emt 00:00:22]} b4 {[%clk 00:16:20]} {[%emt 00:00:57]} 44. c4
{[%clk 00:05:10]} {[%emt 00:02:14]} dxc4+ {[%clk 00:16:31]} {[%emt 00:00:18]}
45. bxc4 {[%clk 00:05:39]} {[%emt 00:00:01]} Rb8 {[%clk 00:15:25]} {[%emt
00:01:36]} 46. Re3 {[%clk 00:03:38]} {[%emt 00:02:31]} b3 {[%clk 00:13:21]}
{[%emt 00:02:34]} 47. Re5 {[%clk 00:04:04]} {[%emt 00:00:04]} b2 {[%clk
00:13:35]} {[%emt 00:00:17]} 48. Rb1 {[%clk 00:04:30]} {[%emt 00:00:04]} Rb3+
{[%clk 00:13:32]} {[%emt 00:00:33]} 49. Kc2 {[%clk 00:00:59]} {[%emt 00:04:01]}
Rxa3 {[%clk 00:13:25]} {[%emt 00:00:37]} 50. c5 {[%clk 00:00:42]} {[%emt
00:00:47]} Rg3 {[%clk 00:12:01]} {[%emt 00:01:54]} 51. Rxb2 {[%clk 00:01:11]}
{[%emt 00:00:02]} a4 {[%clk 00:08:55]} {[%emt 00:03:35]} 52. Rb6 {[%clk
00:01:40]} {[%emt 00:00:01]} Rxb6 {[%clk 00:08:36]} {[%emt 00:00:49]} 53. cxb6
{[%clk 00:02:09]} {[%emt 00:00:01]} Rb3 {[%clk 00:08:58]} {[%emt 00:00:07]} 54.
Ra5 {[%clk 00:02:09]} {[%emt 00:00:31]} Rxb6 {[%clk 00:07:24]} {[%emt
00:02:05]} 55. Rxa4 {[%clk 00:02:38]} Kf6 {[%clk 00:03:38]} {[%emt 00:04:15]}
56. Ra2 {[%clk 00:01:42]} {[%emt 00:01:26]} Rb8 {[%clk 00:01:33]} {[%emt
00:02:35]} 57. Kd3 {[%clk 00:01:40]} {[%emt 00:00:30]} Rb3+ {[%clk 00:01:51]}
{[%emt 00:00:13]} 58. Ke4 {[%clk 00:02:04]} {[%emt 00:00:05]} Rg3 {[%clk
00:02:09]} {[%emt 00:00:12]} 59. Rd2 {[%clk 00:01:30]} {[%emt 00:01:03]} g5
{[%clk 00:01:35]} {[%emt 00:01:07]} 60. fxg5+ {[%clk 00:01:03]} {[%emt
00:00:56]} hxg5 {[%clk 00:01:53]} {[%emt 00:00:11]} 61. d5 {[%clk 00:01:27]}
{[%emt 00:00:06]} Rxg4+ {[%clk 00:01:52]} {[%emt 00:00:31]} 62. Kf3 {[%clk
00:01:45]} {[%emt 00:00:11]} Rf4+ {[%clk 00:02:10]} {[%emt 00:00:13]} 63. Ke3
{[%clk 00:02:00]} {[%emt 00:00:14]} exd5 {[%clk 00:01:46]} {[%emt 00:00:54]} 64.
Rxd5 {[%clk 00:02:29]} {[%emt 00:00:02]} Kg6 {[%clk 00:01:42]} {[%emt
00:00:33]} 65. Rd8 {[%clk 00:02:26]} {[%emt 00:00:33]} Kh5 {[%clk 00:01:37]}
{[%emt 00:00:36]} 66. Rh8+ {[%clk 00:02:53]} {[%emt 00:00:04]} Kg4 {[%clk
00:01:56]} {[%emt 00:00:10]} 67. Rh3 {[%clk 00:03:18]} {[%emt 00:00:04]} f5
{[%clk 00:01:22]} {[%emt 00:01:05]} 68. Ke2 {[%clk 00:03:47]} {[%emt 00:00:02]}
Ra4 {[%clk 00:01:34]} {[%emt 00:00:18]} 69. Kf2 {[%clk 00:04:03]} {[%emt
00:00:13]} f4 {[%clk 00:01:36]} {[%emt 00:00:30]} 70. Kg1 {[%clk 00:04:00]}
{[%emt 00:00:32]} Kf5 {[%clk 00:01:31]} {[%emt 00:00:36]} 71. Rh8 {[%clk
00:03:49]} {[%emt 00:00:40]} Ra2 {[%clk 00:01:18]} {[%emt 00:00:43]} 72. Rf8+
{[%clk 00:03:45]} {[%emt 00:00:34]} Kg4 {[%clk 00:01:44]} {[%emt 00:00:05]} 73.
Rh8 {[%clk 00:04:07]} {[%emt 00:00:07]} Rb2 {[%clk 00:01:51]} {[%emt 00:00:25]}
74. Rh7 {[%clk 00:04:17]} {[%emt 00:00:19]} Kf5 {[%clk 00:01:42]} {[%emt
00:00:39]} 75. Rh8 {[%clk 00:04:39]} {[%emt 00:00:06]} g4 {[%clk 00:01:34]}
{[%emt 00:00:40]} 76. Kf1 {[%clk 00:04:35]} {[%emt 00:00:32]} Kg5 {[%clk
00:01:29]} {[%emt 00:00:36]} 77. Kg1 {[%clk 00:03:22]} {[%emt 00:01:43]} Rb1+
{[%clk 00:01:29]} {[%emt 00:00:32]} 78. Kf2 {[%clk 00:03:50]} {[%emt 00:00:01]}
Rb2+ {[%clk 00:00:49]} {[%emt 00:01:10]} 79. Kf1 {[%clk 00:04:18]} {[%emt
00:00:01]} Ra2 {[%clk 00:00:59]} {[%emt 00:00:21]} 80. Kg1 {[%clk 00:04:40]}
{[%emt 00:00:06]} Ra1+ {[%clk 00:00:36]} {[%emt 00:00:54]} 81. Kf2 {[%clk
00:05:09]} {[%emt 00:00:01]} g3+ {[%clk 00:01:01]} {[%emt 00:00:05]} 82. Ke2
{[%clk 00:05:26]} {[%emt 00:00:12]} Ra2+ {[%clk 00:01:23]} {[%emt 00:00:10]} 83.
Kf1 {[%clk 00:05:47]} {[%emt 00:00:08]} Ra1+ {[%clk 00:01:49]} {[%emt
00:00:04]} 84. Ke2 {[%clk 00:06:14]} {[%emt 00:00:03]} Rg1 {[%clk 00:01:00]}
{[%emt 00:01:20]} 85. Rg8+ {[%clk 00:06:27]} {[%emt 00:00:16]} Kf5 {[%clk
00:00:45]} {[%emt 00:00:46]} 86. Rf8+ {[%clk 00:06:52]} {[%emt 00:00:04]} Kg5
{[%clk 00:01:06]} {[%emt 00:00:09]} 87. Rg8+ {[%clk 00:07:20]} {[%emt
00:00:02]} Kf5 {[%clk 00:00:42]} {[%emt 00:00:54]} 88. Rf8+ {[%clk 00:07:49]}
{[%emt 00:00:01]} Ke5 {[%clk 00:01:04]} {[%emt 00:00:08]} 89. Re8+ {[%clk
00:08:17]} {[%emt 00:00:02]} Kd5 {[%clk 00:01:01]} {[%emt 00:00:33]} 90. Rd8+
{[%clk 00:08:00]} {[%emt 00:00:46]} Ke6 {[%clk 00:01:27]} {[%emt 00:00:05]} 91.
Kf3 {[%clk 00:08:16]} {[%emt 00:00:14]} Rf1+ {[%clk 00:01:54]} {[%emt
00:00:04]} 92. Kg4 {[%clk 00:08:01]} {[%emt 00:00:44]} Ke5 {[%clk 00:02:09]}
{[%emt 00:00:16]} 93. Re8+ {[%clk 00:06:07]} {[%emt 00:02:23]} Kd4 {[%clk
00:02:38]} {[%emt 00:00:01]} 94. Re7 {[%clk 00:05:37]} {[%emt 00:01:00]} Kd3
{[%clk 00:02:55]} {[%emt 00:00:13]} 95. Re8 {[%clk 00:05:36]} {[%emt 00:00:31]}
Rf2 {[%clk 00:02:00]} {[%emt 00:01:25]} 96. Kh3 {[%clk 00:04:48]} {[%emt
00:01:16]} Re2 {[%clk 00:02:04]} {[%emt 00:00:27]} 97. Ra8 {[%clk 00:04:53]}
{[%emt 00:00:25]} Kd2 {[%clk 00:00:45]} {[%emt 00:01:50]} 98. Ra4 {[%clk
00:04:36]} {[%emt 00:00:47]} Ke3 {[%clk 00:00:33]} {[%emt 00:00:42]} 99. Ra3+
{[%clk 00:05:00]} {[%emt 00:00:05]} Ke4 {[%clk 00:00:47]} {[%emt 00:00:17]} 100.
Ra4+ {[%clk 00:05:22]} {[%emt 00:00:08]} Kf5 {[%clk 00:01:12]} {[%emt
00:00:05]} 101. Ra8 {[%clk 00:04:42]} {[%emt 00:01:09]} Re6 {[%clk 00:01:12]}
{[%emt 00:00:31]} 102. Ra5+ {[%clk 00:04:10]} {[%emt 00:01:01]} Re5 {[%clk
00:00:37]} {[%emt 00:01:05]} 103. Ra8 {[%clk 00:03:58]} {[%emt 00:00:42]} Re7
{[%clk 00:00:34]} {[%emt 00:00:34]} 104. Ra5+ {[%clk 00:03:55]} {[%emt
00:00:33]} Ke4 {[%clk 00:00:41]} {[%emt 00:00:23]} 105. Ra4+ {[%clk 00:04:21]}
{[%emt 00:00:04]} Ke3 {[%clk 00:00:46]} {[%emt 00:00:25]} 106. Ra3+ {[%clk
00:04:26]} {[%emt 00:00:26]} Ke4 {[%clk 00:00:52]} {[%emt 00:00:24]} 107. Ra4+
{[%clk 00:04:50]} {[%emt 00:00:06]} Kf5 {[%clk 00:01:15]} {[%emt 00:00:06]} 108.
Ra5+ {[%clk 00:05:15]} {[%emt 00:00:05]} Re5 {[%clk 00:01:43]} {[%emt
00:00:03]} 109. Ra8 {[%clk 00:05:34]} {[%emt 00:00:10]} Rd5 {[%clk 00:00:41]}
{[%emt 00:01:32]} 110. Ra7 {[%clk 00:05:24]} {[%emt 00:00:40]} Rd8 {[%clk
00:00:55]} {[%emt 00:00:17]} 111. Rf7+ {[%clk 00:05:00]} {[%emt 00:00:53]} Kg5
{[%clk 00:00:51]} {[%emt 00:00:35]} 112. Rg7+ {[%clk 00:05:26]} {[%emt
00:00:04]} Kf5 {[%clk 00:01:10]} {[%emt 00:00:10]} 113. Rf7+ {[%clk 00:05:54]}
{[%emt 00:00:03]} Kg5 {[%clk 00:01:30]} {[%emt 00:00:11]} 114. Rg7+ {[%clk
00:06:20]} {[%emt 00:00:04]} Kf6 {[%clk 00:01:56]} {[%emt 00:00:03]} 115. Ra7
{[%clk 00:06:42]} {[%emt 00:00:08]} Kf5 {[%clk 00:00:33]} {[%emt 00:01:54]} 116.
Rf7+ {[%emt 00:00:54]} Ke4 {[%clk 00:00:44]} {[%emt 00:00:20]} 117. Re7+ {[%clk
00:07:28]} {[%emt 00:00:07]} Kd3 {[%clk 00:01:04]} {[%emt 00:00:10]} 118. Kg4
{[%clk 00:07:45]} {[%emt 00:00:13]} Rd4 {[%clk 00:00:49]} {[%emt 00:00:46]} 119.
Kf3 {[%clk 00:08:06]} {[%emt 00:00:07]} Kd2 {[%clk 00:01:10]} {[%emt 00:00:09]}
120. Re2+ {[%clk 00:06:46]} {[%emt 00:01:50]} Kd1 {[%clk 00:01:30]} {[%emt
00:00:11]} 121. Ra2 {[%clk 00:06:37]} {[%emt 00:00:38]} Rd3+ {[%clk 00:00:35]}
{[%emt 00:01:26]} 122. Kxf4 {[%clk 00:06:58]} {[%emt 00:00:09]} Ke1 {[%clk
00:01:01]} {[%emt 00:00:04]} 123. Kg4 {[%clk 00:07:01]} {[%emt 00:00:25]} Kf1
{[%clk 00:01:21]} {[%emt 00:00:12]} 124. Kh3 {[%clk 00:07:19]} {[%emt
00:00:11]} Kg1 {[%clk 00:01:25]} {[%emt 00:00:27]} 125. Ra1+ {[%clk 00:07:19]}
{[%emt 00:00:29]} Kf2 {[%clk 00:01:50]} {[%emt 00:00:06]} 126. Ra2+ {[%clk
00:07:45]} {[%emt 00:00:05]} Kg1 {[%clk 00:02:15]} {[%emt 00:00:04]} 127. Ra1+
{[%clk 00:08:11]} {[%emt 00:00:04]} Kf2 {[%clk 00:02:41]} {[%emt 00:00:04]} 128.
Ra2+ {[%clk 00:08:38]} {[%emt 00:00:03]} Kg1 {[%clk 00:03:06]} {[%emt
00:00:05]} 1/2-1/2

[Event "Hull 4NCL GM Norm Tournament"]
[Site "Canham Turner Centre"]
[Date "2022.10.16"]
[Round "8.2"]
[White "Willow, Jonah B"]
[Black "Turner, Matthew J"]
[Result "1-0"]
[TimeControl "1hr30 + 30sec inc"]
[WhiteElo "2395"]
[BlackElo "2461"]

1. e4 {[%clk 01:28:12]} {[%emt 00:02:47]} e5 {[%clk 01:30:47]} {[%emt
00:00:13]} 2. Nf3 {[%clk 01:28:19]} {[%emt 00:00:22]} Nc6 {[%clk 01:31:04]}
{[%emt 00:00:14]} 3. Nc3 {[%clk 01:27:59]} {[%emt 00:00:51]} Nf6 {[%clk
01:31:01]} {[%emt 00:00:33]} 4. a3 {[%clk 01:27:42]} {[%emt 00:00:47]} Be7
{[%clk 01:25:28]} {[%emt 00:06:03]} 5. d4 {[%clk 01:27:17]} {[%emt 00:00:55]}
exd4 {[%clk 01:25:48]} {[%emt 00:00:09]} 6. Nxd4 {[%clk 01:27:42]} {[%emt
00:00:05]} d6 {[%clk 01:25:17]} {[%emt 00:01:02]} 7. Bb5 {[%clk 01:27:20]}
{[%emt 00:00:51]} Bd7 {[%clk 01:25:30]} {[%emt 00:00:17]} 8. Nxc6 {[%clk
01:27:37]} {[%emt 00:00:13]} bxc6 {[%clk 01:24:10]} {[%emt 00:01:50]} 9. Bd3
{[%clk 01:28:03]} {[%emt 00:00:04]} Ng4 {[%clk 01:19:26]} {[%emt 00:05:13]} 10.
Be2 {[%clk 01:20:56]} {[%emt 00:07:37]} Ne5 {[%clk 01:19:20]} {[%emt 00:00:36]}
11. f4 {[%clk 01:18:54]} {[%emt 00:02:32]} Ng6 {[%clk 01:18:27]} {[%emt
00:01:23]} 12. O-O {[%clk 01:17:54]} {[%emt 00:01:29]} O-O {[%clk 01:17:46]}
{[%emt 00:01:12]} 13. Bd3 {[%clk 01:15:59]} {[%emt 00:02:25]} Bf6 {[%clk
01:14:37]} {[%emt 00:03:39]} 14. Bd2 {[%clk 01:13:35]} {[%emt 00:02:54]} c5
{[%clk 01:09:59]} {[%emt 00:05:08]} 15. Kh1 {[%clk 01:07:07]} {[%emt 00:06:57]}
Bc6 {[%clk 01:09:28]} {[%emt 00:01:01]} 16. Qh5 {[%clk 01:05:38]} {[%emt
00:01:59]} Re8 {[%clk 01:04:23]} {[%emt 00:05:36]} 17. Rae1 {[%clk 01:04:42]}
{[%emt 00:01:26]} Bd4 {[%clk 00:58:14]} {[%emt 00:06:39]} 18. b3 {[%clk
00:52:58]} {[%emt 00:12:14]} Nf8 {[%clk 00:53:35]} {[%emt 00:05:10]} 19. Nb5
{[%clk 00:48:51]} {[%emt 00:04:37]} g6 {[%clk 00:51:45]} {[%emt 00:02:20]} 20.
Qd1 {[%clk 00:41:20]} {[%emt 00:08:01]} Bg7 {[%clk 00:50:34]} {[%emt 00:01:40]}
21. Ba5 {[%clk 00:38:23]} {[%emt 00:03:28]} Re7 {[%clk 00:48:17]} {[%emt
00:02:47]} 22. f5 {[%clk 00:37:23]} {[%emt 00:01:30]} a6 {[%clk 00:43:16]}
{[%emt 00:05:31]} 23. f6 {[%clk 00:35:15]} {[%emt 00:02:38]} axb5 {[%clk
00:43:19]} {[%emt 00:00:27]} 24. Bc3 {[%clk 00:34:57]} {[%emt 00:00:47]} Nd7
{[%clk 00:41:25]} {[%emt 00:02:24]} 25. fxe7 {[%clk 00:33:31]} {[%emt
00:01:56]} Qxe7 {[%clk 00:41:42]} {[%emt 00:00:13]} 26. Bxg7 {[%clk 00:33:52]}
{[%emt 00:00:09]} Kxg7 {[%clk 00:42:08]} {[%emt 00:00:04]} 27. Qe2 {[%clk
00:34:12]} {[%emt 00:00:10]} Rxa3 {[%clk 00:36:16]} {[%emt 00:06:23]} 28. Bxb5
{[%clk 00:34:22]} {[%emt 00:00:20]} Bxb5 {[%clk 00:36:11]} {[%emt 00:00:34]} 29.
Qxb5 {[%clk 00:34:50]} {[%emt 00:00:02]} Ne5 {[%clk 00:35:29]} {[%emt
00:01:13]} 30. Qe2 {[%clk 00:33:11]} {[%emt 00:02:09]} c4 {[%clk 00:31:05]}
{[%emt 00:04:54]} 31. Ra1 {[%clk 00:30:53]} {[%emt 00:02:48]} Rxa1 {[%clk
00:28:31]} {[%emt 00:03:04]} 32. Rxa1 {[%clk 00:31:21]} {[%emt 00:00:01]} cxb3
{[%clk 00:26:27]} {[%emt 00:02:34]} 33. cxb3 {[%clk 00:30:02]} {[%emt
00:01:48]} Qe6 {[%clk 00:23:41]} {[%emt 00:03:17]} 34. b4 {[%clk 00:22:46]}
{[%emt 00:07:46]} Qb3 {[%clk 00:14:19]} {[%emt 00:09:51]} 35. b5 {[%clk
00:21:53]} {[%emt 00:01:24]} c6 {[%clk 00:13:30]} {[%emt 00:01:20]} 36. bxc6
{[%clk 00:21:30]} {[%emt 00:00:53]} Qc3 {[%clk 00:13:23]} {[%emt 00:00:36]} 37.
Rd1 {[%clk 00:14:18]} {[%emt 00:07:42]} Qxc6 {[%clk 00:13:44]} {[%emt
00:00:09]} 38. Qe3 {[%clk 00:14:34]} {[%emt 00:00:14]} f6 {[%emt 00:05:17]} 39.
Qd4 {[%clk 00:14:09]} {[%emt 00:00:04]} 1-0

[Event "Hull 4NCL GM Norm Tournament"]
[Site "Canham Turner Centre"]
[Date "2022.10.16"]
[Round "8.3"]
[White "Wadsworth, Matthew J"]
[Black "Royal, Shreyas"]
[Result "0-1"]
[TimeControl "1hr30 + 30sec inc"]
[WhiteElo "2467"]
[BlackElo "2431"]

1. Nf3 {[%clk 01:30:56]} {[%emt 00:00:03]} d5 {[%clk 01:30:53]} {[%emt
00:00:08]} 2. c4 {[%clk 01:31:22]} {[%emt 00:00:04]} e6 {[%clk 01:31:14]}
{[%emt 00:00:09]} 3. g3 {[%clk 01:31:46]} {[%emt 00:00:06]} Nf6 {[%clk
01:31:38]} {[%emt 00:00:06]} 4. Bg2 {[%clk 01:31:54]} {[%emt 00:00:22]} dxc4
{[%clk 01:32:03]} {[%emt 00:00:06]} 5. Qa4+ {[%clk 01:32:17]} {[%emt 00:00:07]}
c6 {[%clk 01:32:26]} {[%emt 00:00:04]} 6. Qxc4 {[%clk 01:32:36]} {[%emt
00:00:14]} b5 {[%clk 01:32:50]} {[%emt 00:00:06]} 7. Qb3 {[%clk 01:32:56]}
{[%emt 00:00:10]} Bb7 {[%clk 01:33:12]} {[%emt 00:00:07]} 8. d4 {[%clk
01:32:44]} {[%emt 00:00:42]} a6 {[%clk 01:32:47]} {[%emt 00:00:55]} 9. Ne5
{[%clk 01:25:52]} {[%emt 00:07:22]} Qxd4 {[%clk 01:29:59]} {[%emt 00:03:18]} 10.
Nd3 {[%clk 01:26:17]} {[%emt 00:00:05]} Qb6 {[%clk 01:24:24]} {[%emt 00:06:05]}
11. O-O {[%clk 01:19:15]} {[%emt 00:07:33]} c5 {[%clk 01:21:40]} {[%emt
00:03:14]} 12. Nf4 {[%clk 01:17:27]} {[%emt 00:02:18]} Bxg2 {[%clk 01:18:23]}
{[%emt 00:03:47]} 13. Kxg2 {[%clk 01:17:51]} {[%emt 00:00:05]} Qc6+ {[%clk
01:16:16]} {[%emt 00:02:37]} 14. Kg1 {[%clk 01:15:11]} {[%emt 00:03:10]} Nbd7
{[%clk 01:16:39]} {[%emt 00:00:07]} 15. a4 {[%clk 01:13:02]} {[%emt 00:02:40]}
Rb8 {[%clk 01:17:01]} {[%emt 00:00:07]} 16. Rd1 {[%clk 00:56:52]} {[%emt
00:16:40]} c4 {[%clk 01:13:06]} {[%emt 00:04:25]} 17. axb5 {[%clk 00:56:01]}
{[%emt 00:01:22]} axb5 {[%clk 01:13:28]} {[%emt 00:00:08]} 18. Qf3 {[%clk
00:47:56]} {[%emt 00:08:36]} Qxf3 {[%clk 01:08:17]} {[%emt 00:05:41]} 19. exf3
{[%clk 00:48:24]} {[%emt 00:00:01]} Bc5 {[%clk 01:02:38]} {[%emt 00:06:08]} 20.
b3 {[%clk 00:47:01]} {[%emt 00:01:53]} O-O {[%clk 00:52:37]} {[%emt 00:10:31]}
21. Bb2 {[%clk 00:46:14]} {[%emt 00:01:17]} Nb6 {[%clk 00:49:35]} {[%emt
00:03:32]} 22. Rc1 {[%clk 00:37:17]} {[%emt 00:09:27]} Nfd5 {[%clk 00:41:08]}
{[%emt 00:08:57]} 23. bxc4 {[%clk 00:20:25]} {[%emt 00:17:23]} Nxf4 {[%clk
00:40:35]} {[%emt 00:01:03]} 24. gxf4 {[%clk 00:18:39]} {[%emt 00:02:15]} Nxc4
{[%clk 00:39:52]} {[%emt 00:01:13]} 25. Bc3 {[%clk 00:14:31]} {[%emt 00:04:38]}
Rfd8 {[%clk 00:38:56]} {[%emt 00:01:26]} 26. Kf1 {[%clk 00:13:39]} {[%emt
00:01:22]} Bd6 {[%clk 00:34:06]} {[%emt 00:05:20]} 27. Ke2 {[%clk 00:13:32]}
{[%emt 00:00:37]} Bxf4 {[%clk 00:34:24]} {[%emt 00:00:11]} 28. Rg1 {[%clk
00:13:54]} {[%emt 00:00:08]} e5 {[%clk 00:34:50]} {[%emt 00:00:04]} 29. Bb4
{[%clk 00:13:39]} {[%emt 00:00:46]} Rd7 {[%clk 00:33:07]} {[%emt 00:02:13]} 30.
h4 {[%clk 00:12:14]} {[%emt 00:01:55]} Nb6 {[%clk 00:29:41]} {[%emt 00:03:56]}
31. Nc3 {[%clk 00:10:55]} {[%emt 00:01:49]} Rd2+ {[%clk 00:29:14]} {[%emt
00:00:56]} 32. Kf1 {[%clk 00:11:20]} {[%emt 00:00:05]} Nd5 {[%clk 00:28:50]}
{[%emt 00:00:55]} 33. Bd6 {[%clk 00:10:19]} {[%emt 00:01:31]} Rc8 {[%clk
00:28:44]} {[%emt 00:00:36]} 34. Ne4 {[%clk 00:10:23]} {[%emt 00:00:27]} Rdc2
{[%clk 00:28:50]} {[%emt 00:00:24]} 35. Ra7 {[%clk 00:08:01]} {[%emt 00:02:52]}
Rc1+ {[%clk 00:24:08]} {[%emt 00:05:13]} 36. Kg2 {[%clk 00:08:30]} Ne3+ {[%clk
00:24:23]} {[%emt 00:00:15]} 37. fxe3 {[%clk 00:08:24]} {[%emt 00:00:35]} Rxg1+
{[%clk 00:24:47]} {[%emt 00:00:06]} 38. Kxg1 {[%clk 00:08:51]} {[%emt
00:00:04]} Bxe3+ {[%clk 00:25:11]} {[%emt 00:00:05]} 0-1